fUSD/lending_fUSD_20260513
["ID","MTS","AMOUNT","RATE_DAILY","PERIOD"]
[422190381,1778668232000,-500.0,0.000142,2]
[422190385,1778668232000,-500.0,0.000142,2]
[422190373,1778668232000,-500.0,0.000142,2]
[422190383,1778668232000,-500.0,0.000142,2]
[422190390,1778668232000,-500.0,0.000142,2]
[422190375,1778668232000,-500.0,0.000142,2]
[422190377,1778668232000,-500.0,0.000142,2]
[422190364,1778668232000,-500.0,0.000142,2]
[422190443,1778668238000,-86.36381167,0.00014352,2]
[422190441,1778668238000,-500.0,0.00014352,2]
[422190444,1778668238000,-500.0,0.00014352,2]
[422190446,1778668238000,-1261.20115471,0.00014353,2]
[422190442,1778668238000,-73.69657588,0.00014352,2]
[422190447,1778668238000,-1299.92122796,0.00014353,2]
[422190448,1778668238000,-2093.96595605,0.00014353,2]
[422190449,1778668238000,-1569.08617707,0.00014353,2]
[422190450,1778668238000,-1831.53364783,0.00014353,2]
[422190451,1778668238000,-816.62506821,0.00014353,2]
[422190445,1778668238000,-409.69681265,0.00014352,2]
[422190455,1778668240000,-179.13408827,0.00014353,2]
[422190454,1778668240000,-1320.70345564,0.00014353,2]
[422190457,1778668240000,-705.81015768,0.00014353,2]
[422190453,1778668240000,-4907.28961458,0.00014353,2]
[422190458,1778668240000,-2529.66279512,0.00014353,2]
[422190459,1778668240000,-91604.8355032,0.00014353,2]
[422190460,1778668240000,-7793.9953795,0.00014353,2]
[422190456,1778668240000,-11.11591173,0.00014353,2]
[422190499,1778668241000,-500.0,0.00014599,2]
[422190486,1778668241000,-801.95703292,0.00014577,2]
[422190488,1778668241000,-500.0,0.00014599,2]
[422190493,1778668241000,-500.0,0.00014599,2]
[422190497,1778668241000,-500.0,0.00014599,2]
[422190492,1778668241000,-500.0,0.00014599,2]
[422190496,1778668241000,-500.0,0.00014599,2]
[422190494,1778668241000,-500.0,0.00014599,2]
[422190495,1778668241000,-500.0,0.00014599,2]
[422190500,1778668241000,-500.0,0.00014599,2]
[422190506,1778668241000,-500.0,0.00014599,2]
[422190501,1778668241000,-500.0,0.00014599,2]
[422190498,1778668241000,-500.0,0.00014599,2]
[422190503,1778668241000,-500.0,0.00014599,2]
[422190505,1778668241000,-500.0,0.00014599,2]
[422190487,1778668241000,-500.0,0.00014599,2]
[422190508,1778668241000,-263.16091522,0.00014599,2]
[422190510,1778668241000,-15528.45354392,0.00014634,2]
[422190507,1778668241000,-500.0,0.00014599,2]
[422190511,1778668241000,-6534.55130346,0.00014647,2]
[422190512,1778668241000,-801.95703292,0.00014684,2]
[422190502,1778668241000,-500.0,0.00014599,2]
[422190485,1778668241000,-282.63591682,0.00014566,2]
[422190489,1778668241000,-500.0,0.00014599,2]
[422190484,1778668241000,-300.0,0.00014566,2]
[422190504,1778668241000,-500.0,0.00014599,2]
[422190464,1778668241000,-6534.55130346,0.00014395,2]
[422190462,1778668241000,-15528.45354392,0.00014367,2]
[422190463,1778668241000,-150.0,0.00014387,2]
[422190461,1778668241000,-801.95703292,0.00014361,2]
[422190465,1778668241000,-2500.0,0.000144,5]
[422190467,1778668241000,-801.95703292,0.00014469,2]
[422190469,1778668241000,-150.0,0.00014487,2]
[422190466,1778668241000,-15528.45354392,0.00014456,2]
[422190468,1778668241000,-6534.55130346,0.00014479,2]
[422190480,1778668241000,-300.0,0.00014566,2]
[422190470,1778668241000,-150.0,0.00014487,2]
[422190472,1778668241000,-3200.0,0.000145,5]
[422190474,1778668241000,-15528.45354392,0.00014545,2]
[422190475,1778668241000,-6534.55130346,0.00014563,2]
[422190473,1778668241000,-150.0,0.00014537,2]
[422190476,1778668241000,-600.0,0.00014566,2]
[422190477,1778668241000,-300.0,0.00014566,2]
[422190490,1778668241000,-500.0,0.00014599,2]
[422190482,1778668241000,-300.0,0.00014566,2]
[422190478,1778668241000,-300.0,0.00014566,2]
[422190491,1778668241000,-500.0,0.00014599,2]
[422190471,1778668241000,-150.0,0.00014487,2]
[422190515,1778668241000,-15528.45354392,0.00014722,2]
[422190509,1778668241000,-600.0,0.000146,5]
[422190517,1778668241000,-500.0,0.00014731,2]
[422190542,1778668241000,-247.47649436,0.00014986,2]
[422190540,1778668241000,-150.00000001,0.00014986,2]
[422190544,1778668241000,-261.71745091,0.00014986,2]
[422190541,1778668241000,-150.0,0.00014986,2]
[422190543,1778668241000,-171.07198398,0.00014986,2]
[422190548,1778668241000,-500.0,0.00014999,2]
[422190547,1778668241000,-500.0,0.00014999,2]
[422190555,1778668241000,-300.0,0.00014999,2]
[422190550,1778668241000,-271.67005628,0.00014999,2]
[422190552,1778668241000,-500.0,0.00014999,2]
[422190539,1778668241000,-174.75,0.00014985,2]
[422190549,1778668241000,-500.0,0.00014999,2]
[422190554,1778668241000,-191.09067024,0.00014999,2]
[422190557,1778668241000,-300.0,0.00014999,2]
[422190553,1778668241000,-447.09362448,0.00014999,2]
[422190556,1778668241000,-300.0,0.00014999,2]
[422190558,1778668241000,-300.0,0.00014999,2]
[422190563,1778668241000,-2768016.85863814,0.00015,2]
[422190564,1778668241000,-3802.00789222,0.00015,2]
[422190559,1778668241000,-666.0,0.00014999,2]
[422190560,1778668241000,-11219413.31444934,0.00015,2]
[422190561,1778668241000,-2075.73057974,0.00015,2]
[422190551,1778668241000,-155.0,0.00014999,2]
[422190516,1778668241000,-500.0,0.00014731,2]
[422190538,1778668241000,-184.13,0.00014985,2]
[422190534,1778668241000,-191.98255793,0.000149,2]
[422190514,1778668241000,-600.0,0.000147,5]
[422190513,1778668241000,-150.0,0.00014687,2]
[422190518,1778668241000,-6534.55130346,0.00014732,2]
[422190519,1778668241000,-801.95703292,0.00014792,2]
[422190562,1778668241000,-8080.85641291,0.00015,2]
[422190520,1778668241000,-600.0,0.000148,5]
[422190521,1778668241000,-15528.45354392,0.00014811,2]
[422190522,1778668241000,-6534.55130346,0.00014816,2]
[422190523,1778668241000,-1680.0,0.00014835,2]
[422190527,1778668241000,-3153.5103798,0.000149,2]
[422190537,1778668241000,-56080.78815648,0.000149,2]
[422190524,1778668241000,-150.0,0.00014836,2]
[422190528,1778668241000,-5534.4002,0.000149,2]
[422190530,1778668241000,-1085.55922464,0.000149,2]
[422190529,1778668241000,-801.95703292,0.000149,2]
[422190525,1778668241000,-2000.0,0.00014897,2]
[422190533,1778668241000,-600.0,0.000149,5]
[422190531,1778668241000,-6534.55130346,0.000149,2]
[422190532,1778668241000,-15528.45354392,0.000149,2]
[422190535,1778668241000,-191.98255793,0.000149,2]
[422190545,1778668241000,-250.9018014,0.0001499,2]
[422190536,1778668241000,-625.28660865,0.000149,2]
[422190546,1778668241000,-500.0,0.00014999,2]
[422190526,1778668241000,-539.56467018,0.000149,2]
[422190568,1778668243000,-337.0,0.00015,2]
[422190570,1778668246000,-867.9920111,0.00015,2]
[422190575,1778668447000,338.56,7.436e-05,2]
[422190577,1778668447000,338.56,8.189e-05,2]
[422190578,1778668447000,338.56,8.565e-05,2]
[422190576,1778668447000,338.56,7.812e-05,2]
[422190582,1778668448000,338.56,0.00010069,2]
[422190581,1778668448000,338.56,9.693e-05,2]
[422190580,1778668448000,338.56,9.317e-05,2]
[422190579,1778668448000,338.56,8.941e-05,2]
[422190586,1778668449000,338.56,0.00011573,2]
[422190585,1778668449000,338.56,0.00011197,2]
[422190584,1778668449000,338.56,0.00010821,2]
[422190583,1778668449000,338.56,0.00010445,2]
[422190590,1778668450000,338.56,0.00013077,2]
[422190589,1778668450000,338.56,0.00012701,2]
[422190588,1778668450000,338.56,0.00012325,2]
[422190587,1778668450000,338.56,0.00011949,2]
[422190595,1778669238000,150.47,6.835e-05,2]
[422190598,1778669238000,150.47,9.297e-05,2]
[422190597,1778669238000,150.47,8.477e-05,2]
[422190596,1778669238000,150.47,7.656e-05,2]
[422190602,1778669239000,150.47,0.00012581,2]
[422190601,1778669239000,150.47,0.0001176,2]
[422190600,1778669239000,150.47,0.00010939,2]
[422190599,1778669239000,150.47,0.00010118,2]
[422190606,1778669432000,-154.93,0.0001333,2]
[422190607,1778669432000,-156.92,0.00013383,2]
[422190610,1778669432000,-2000.0,0.00013541,2]
[422190613,1778669432000,-1200.0,0.000139,2]
[422190609,1778669432000,-215.54,0.00013526,2]
[422190614,1778669432000,-1068.3325,0.00013901,2]
[422190616,1778669432000,-13320.78746309,0.00013901,2]
[422190608,1778669432000,-150.47,0.00013402,2]
[422190612,1778669432000,-400.0,0.000139,5]
[422190617,1778669432000,-381.73327814,0.00013901,2]
[422190615,1778669432000,-4153.40312257,0.00013901,2]
[422190619,1778669432000,-530.12669042,0.00013901,2]
[422190611,1778669432000,-200.0,0.00013699,2]
[422190618,1778669432000,-178112.42703864,0.00013901,2]
[422190654,1778669438000,-150.0,0.00014,2]
[422190662,1778669438000,-800.0,0.000145,5]
[422190659,1778669438000,-782406.4458,0.00014042,2]
[422190658,1778669438000,-243.88966114,0.00014041,2]
[422190657,1778669438000,-188.63442842,0.00014041,2]
[422190656,1778669438000,-483.76346917,0.00014041,2]
[422190655,1778669438000,-167.24529784,0.00014032,2]
[422190660,1778669438000,-16862.1758,0.00014101,2]
[422190652,1778669438000,-173182.16406101,0.00013901,2]
[422190651,1778669438000,-5542.43678066,0.00013901,2]
[422190649,1778669438000,-469.12259498,0.00013901,2]
[422190650,1778669438000,-2111.45685062,0.00013901,2]
[422190648,1778669438000,-137404.42991987,0.00013901,2]
[422190647,1778669438000,-2940.92184458,0.00013842,2]
[422190653,1778669438000,-5000.0,0.00013942,2]
[422190663,1778669438000,-7152.849034,0.0001452,2]
[422190680,1778669438000,-300.0,0.00014663,2]
[422190667,1778669438000,-10527.1764095,0.0001452,2]
[422190661,1778669438000,-2000.0,0.00014101,2]
[422190694,1778669438000,-400.0,0.000149,5]
[422190699,1778669438000,-8230.17732168,0.00015,2]
[422190696,1778669438000,-1750975.70920524,0.00015,2]
[422190689,1778669438000,-2100.0,0.000148,5]
[422190685,1778669438000,-176.77448896,0.00014663,2]
[422190687,1778669438000,-1700.0,0.000147,5]
[422190692,1778669438000,-159.71,0.00014867,2]
[422190674,1778669438000,-1200.0,0.000146,5]
[422190676,1778669438000,-300.0,0.00014663,2]
[422190678,1778669438000,-167.73312861,0.00014663,2]
[422190671,1778669438000,-19640.3483779,0.0001452,2]
[422190665,1778669438000,-705.8101578,0.0001452,2]
[422190669,1778669438000,-883.0163112,0.0001452,2]
[422190683,1778669438000,-300.0,0.00014663,2]
[422190742,1778669443000,-548953.00042298,0.00015,2]
[422190741,1778669443000,-1141.42249156,0.00015,2]
[422190740,1778669443000,-448.57750844,0.00013842,2]
[422190750,1778669449000,-1303.00180029,0.00013901,2]
[422190748,1778669449000,-159089.41582914,0.00013901,2]
[422190747,1778669449000,-298.72555693,0.00013901,2]
[422190751,1778669449000,-726.17993025,0.00013901,2]
[422190749,1778669449000,-9920.31478861,0.00013901,2]
[422190752,1778669449000,-71590.8652529,0.00013901,2]
[422190754,1778669449000,-10471.03834188,0.00013901,2]
[422190755,1778669449000,-448.57750839,0.0001396,2]
[422190756,1778669449000,-134962.8351595,0.00015,2]
[422190753,1778669449000,-10265.165,0.00013901,2]
[422190766,1778669450000,-350.59721929,0.00015,2]
[422190759,1778669450000,-301.0575994,0.00015,2]
[422190758,1778669450000,-2110.78764327,0.00015,2]
[422190760,1778669450000,-10803.51284971,0.00015,2]
[422190757,1778669450000,-688.8580236,0.00015,2]
[422190773,1778669565000,-383.12162624,0.000139,2]
[422190772,1778669565000,-500.0,0.000139,2]
[422190770,1778669565000,-300.0,0.00013899,2]
[422190771,1778669565000,-500.0,0.000139,2]
[422190777,1778669565000,-500.0,0.00014041,2]
[422190775,1778669565000,-500.0,0.00014041,2]
[422190776,1778669565000,-500.0,0.00014041,2]
[422190774,1778669565000,-11442.1068,0.00013901,2]
[422190783,1778669607000,-448.57750839,0.00014547,2]
[422190782,1778669607000,-2127.1156181,0.0001452,2]
[422190781,1778669607000,-448.57750839,0.0001443,2]
[422190784,1778669607000,-448.57750839,0.00014665,2]
[422190779,1778669607000,-448.57750839,0.00014195,2]
[422190778,1778669607000,-448.57750839,0.00014077,2]
[422190780,1778669607000,-448.57750839,0.00014312,2]
[422190785,1778669607000,-448.57750839,0.00014782,2]
[422190792,1778669607000,-407.32285386,0.00014799,2]
[422190786,1778669607000,-300.0,0.00014798,2]
[422190788,1778669607000,-162.72485431,0.00014799,2]
[422190790,1778669607000,-500.0,0.00014799,2]
[422190789,1778669607000,-500.0,0.00014799,2]
[422190791,1778669607000,-565.09753882,0.00014799,2]
[422190793,1778669607000,-500.0,0.00014799,2]
[422190794,1778669607000,-3297.69657618,0.000148,2]
[422190787,1778669607000,-500.0,0.00014799,2]
[422190795,1778669842000,161.3,0.00024981,120]
[422190796,1778669885000,-356.46,0.00014,2]
[422190799,1778669885000,-150.0,0.00014799,2]
[422190798,1778669885000,-1200.0,0.00014799,2]
[422190800,1778669885000,-173.89972654,0.00014799,2]
[422190801,1778669885000,-51269.64027346,0.000148,2]
[422190797,1778669885000,-250.0,0.00014,2]
[422190808,1778670251000,186.7628148,0.0002739,120]
[422190809,1778670403000,-214.36431346,0.000107,2]
[422190810,1778670555000,-9520.74804151,0.000107,2]
[422190827,1778670631000,-150.0,0.00013488,2]
[422190834,1778670631000,-496.0,0.00014031,2]
[422190832,1778670631000,-166.66,0.00013879,2]
[422190837,1778670631000,-31965.6,0.00014119,2]
[422190829,1778670631000,-1200.0,0.00013698,2]
[422190830,1778670631000,-166.66,0.00013699,2]
[422190828,1778670631000,-2000.0,0.00013547,2]
[422190826,1778670631000,-150.0,0.00013488,2]
[422190818,1778670631000,-250.0,0.00012449,2]
[422190825,1778670631000,-150.0,0.00013488,2]
[422190821,1778670631000,-160.51546821,0.00013488,2]
[422190823,1778670631000,-150.0,0.00013488,2]
[422190822,1778670631000,-152.15910351,0.00013488,2]
[422190820,1778670631000,-496.0,0.00013483,2]
[422190817,1778670631000,-1.89464914,0.000107,2]
[422190819,1778670631000,-496.0,0.00013209,2]
[422190824,1778670631000,-150.0,0.00013488,2]
[422190835,1778670631000,-166.66,0.0001406,2]
[422190831,1778670631000,-496.0,0.00013757,2]
[422190836,1778670631000,-300.0,0.00014118,2]
[422190838,1778670631000,-150.0,0.00014237,2]
[422190870,1778670631000,-496.38,0.000147,2]
[422190869,1778670631000,-1971.86718794,0.000147,2]
[422190867,1778670631000,-496.38,0.00014696,2]
[422190861,1778670631000,-496.0,0.00014579,2]
[422190859,1778670631000,-496.38,0.00014574,2]
[422190866,1778670631000,-1952.1357342,0.00014689,2]
[422190853,1778670631000,-496.38,0.00014445,2]
[422190863,1778670631000,-166.66,0.00014602,2]
[422190868,1778670631000,-150.0,0.00014699,2]
[422190855,1778670631000,-234.85,0.00014539,2]
[422190849,1778670631000,-166.66,0.00014421,2]
[422190851,1778670631000,-496.38,0.00014441,2]
[422190847,1778670631000,-653.65084534,0.00014316,2]
[422190845,1778670631000,-496.0,0.00014305,2]
[422190843,1778670631000,-350.0,0.00014302,2]
[422190841,1778670631000,-350.0,0.00014266,2]
[422190839,1778670631000,-166.66,0.00014241,2]
[422190857,1778670631000,-496.38,0.00014569,2]
[422190885,1778670632000,-53662.53715655,0.000148,2]
[422190888,1778670632000,-2794.0897,0.000148,2]
[422190886,1778670632000,-151.0,0.000148,2]
[422190889,1778670632000,-453.98295507,0.000148,2]
[422190894,1778670632000,-350.0,0.00014815,2]
[422190890,1778670632000,-3224.82904253,0.00014803,2]
[422190892,1778670632000,-453.98295503,0.00014811,2]
[422190893,1778670632000,-350.0,0.00014813,2]
[422190883,1778670632000,-136760.60857845,0.000148,2]
[422190887,1778670632000,-769.5349758,0.000148,2]
[422190884,1778670632000,-48453.46391536,0.000148,2]
[422190872,1778670632000,-3224.82904258,0.0001473,2]
[422190881,1778670632000,-500.0,0.00014799,2]
[422190879,1778670632000,-500.0,0.00014799,2]
[422190880,1778670632000,-500.0,0.00014799,2]
[422190877,1778670632000,-1971.86718793,0.00014789,2]
[422190878,1778670632000,-324.67402196,0.00014799,2]
[422190876,1778670632000,-3224.82904253,0.00014779,2]
[422190875,1778670632000,-1971.86718793,0.00014767,2]
[422190874,1778670632000,-3224.82904253,0.00014754,2]
[422190895,1778670632000,-453.98295503,0.00014822,2]
[422190873,1778670632000,-1971.86718793,0.00014744,2]
[422190871,1778670632000,-1971.86718793,0.00014722,2]
[422190882,1778670632000,-542.56640835,0.00014799,2]
[422190896,1778670632000,-3224.82904253,0.00014827,2]
[422190891,1778670632000,-1971.86718793,0.00014811,2]
[422190900,1778670632000,-453.98295503,0.00014833,2]
[422190899,1778670632000,-1971.86718793,0.00014833,2]
[422190923,1778670632000,-12099.54924276,0.000149,2]
[422190921,1778670632000,-4033.85,0.000149,2]
[422190918,1778670632000,-269.78233509,0.000149,2]
[422190919,1778670632000,-59135.02582404,0.000149,2]
[422190920,1778670632000,-1254.41808677,0.000149,2]
[422190914,1778670632000,-169.71009338,0.00014899,2]
[422190915,1778670632000,-561.7675726,0.00014899,2]
[422190916,1778670632000,-450.5727239,0.00014899,2]
[422190913,1778670632000,-287.21340235,0.0001489,2]
[422190908,1778670632000,-453.98295503,0.00014867,2]
[422190912,1778670632000,-453.98295503,0.00014889,2]
[422190917,1778670632000,-176.0622124,0.00014899,2]
[422190909,1778670632000,-3224.82904253,0.00014876,2]
[422190898,1778670632000,-496.38,0.0001483,2]
[422190897,1778670632000,-496.39,0.00014828,2]
[422190904,1778670632000,-1971.86718793,0.00014856,2]
[422190910,1778670632000,-1971.86718793,0.00014878,2]
[422190901,1778670632000,-453.98295503,0.00014844,2]
[422190922,1778670632000,-751.2084647,0.000149,2]
[422190905,1778670632000,-453.98295503,0.00014856,2]
[422190902,1778670632000,-3224.82904253,0.00014851,2]
[422190906,1778670632000,-208.27114069,0.00014859,2]
[422190907,1778670632000,-214.91342137,0.00014859,2]
[422190911,1778670632000,-453.98295503,0.00014878,2]
[422190903,1778670632000,-496.0,0.00014853,2]
[422190933,1778670637000,-941.77424502,0.000149,2]
[422190930,1778670637000,-339.0282,0.000149,2]
[422190932,1778670637000,-709.68566536,0.000149,2]
[422190931,1778670637000,-1937.42532543,0.000149,2]
[422190934,1778670637000,-2128.74262316,0.000149,2]
[422190935,1778670637000,-1637.52083458,0.000149,2]
[422190938,1778670637000,-624.32021866,0.000149,2]
[422190937,1778670637000,-893249.62612114,0.000149,2]
[422190939,1778670637000,-1971.86718793,0.000149,2]
[422190940,1778670637000,-166.70601962,0.000149,2]
[422190941,1778670637000,-453.98295503,0.000149,2]
[422190942,1778670637000,-3224.82904253,0.000149,2]
[422190943,1778670637000,-151.0,0.000149,2]
[422190936,1778670637000,-1866.30496704,0.000149,2]
[422190944,1778670638000,-384.7674879,0.000149,2]
[422190946,1778670638000,-290.72811285,0.00014908,2]
[422190945,1778670638000,-234.85,0.00014903,2]
[422190947,1778670638000,-164.42386993,0.00014986,2]
[422190948,1778670638000,-281.49346537,0.00014986,2]
[422190950,1778670638000,-150.0,0.00014986,2]
[422190951,1778670638000,-280.99702995,0.00014986,2]
[422190954,1778670638000,-300.0,0.00014999,2]
[422190952,1778670638000,-287.21340235,0.0001499,2]
[422190953,1778670638000,-287.21340235,0.0001499,2]
[422190955,1778670638000,-300.0,0.00014999,2]
[422190957,1778670638000,-847990.57715505,0.00015,2]
[422190959,1778670638000,-11699.48958944,0.00015,2]
[422190949,1778670638000,-181.11373458,0.00014986,2]
[422190963,1778670639000,-275.36756954,0.00015,2]
[422190962,1778670639000,-185.62,0.00015,2]
[422190964,1778670640000,-8100.0,0.00015,2]
[422190965,1778670640000,-4037.49557484,0.00015,2]
[422190966,1778670640000,-302.6193998,0.00015,2]
[422190967,1778670640000,-826.43187601,0.00015,2]
[422190968,1778670640000,-808.425,0.00015,2]
[422190979,1778670642000,-676.05694954,0.00015,2]
[422190978,1778670642000,-5343.77235213,0.00015,2]
[422190977,1778670642000,-2086.99622083,0.00015,2]
[422190984,1778670643000,-478.51655685,0.00015,2]
[422190983,1778670643000,-25981.42025447,0.00015,2]
[422190982,1778670643000,-200.0,0.00015,2]
[422190980,1778670643000,-1680825.36151782,0.00015,2]
[422190981,1778670643000,-383.89,0.00015,2]
[422190992,1778670646000,-1710.57963226,0.00015,2]
[422190991,1778670646000,-16883.40137617,0.00015,2]
[422191013,1778671594000,164.66,7.024e-05,2]
[422191014,1778671607000,-216.48243739,0.0001342,2]
[422191020,1778671831000,-280.99702995,0.00013488,2]
[422191028,1778671831000,-445.77,0.00013799,2]
[422191037,1778671831000,-150.0,0.00014496,2]
[422191027,1778671831000,-151.77,0.00013799,2]
[422191024,1778671831000,-44.38780289,0.00013792,2]
[422191019,1778671831000,-150.0,0.00013488,2]
[422191015,1778671831000,-783.513963,0.0001342,2]
[422191017,1778671831000,-281.49346537,0.00013488,2]
[422191016,1778671831000,-150.0,0.00013488,2]
[422191023,1778671831000,-1200.0,0.00013791,2]
[422191021,1778671831000,-150.0,0.00013553,2]
[422191022,1778671831000,-150.0,0.00013687,2]
[422191029,1778671831000,-200.0,0.0001382,2]
[422191018,1778671831000,-181.11373458,0.00013488,2]
[422191030,1778671831000,-150.0,0.00013822,2]
[422191025,1778671831000,-155.61219711,0.00013792,2]
[422191031,1778671831000,-539.07,0.00013833,2]
[422191026,1778671831000,-2000.0,0.00013792,2]
[422191044,1778671831000,-150.0,0.00014576,2]
[422191043,1778671831000,-172.43,0.00014498,2]
[422191048,1778671831000,-291.85352659,0.00014725,2]
[422191039,1778671831000,-329.35,0.00014497,2]
[422191045,1778671831000,-150.0,0.00014576,2]
[422191038,1778671831000,-3419.69,0.00014497,2]
[422191047,1778671831000,-150.0,0.00014725,2]
[422191040,1778671831000,-1824.53,0.00014497,2]
[422191034,1778671831000,-445.77,0.00014144,2]
[422191041,1778671831000,-6865.6,0.00014497,2]
[422191032,1778671831000,-150.0,0.00013956,2]
[422191046,1778671831000,-284.63445457,0.00014576,2]
[422191035,1778671831000,-133.29816734,0.00014489,2]
[422191036,1778671831000,-312.47183266,0.00014489,2]
[422191033,1778671831000,-250.0,0.00014,2]
[422191094,1778671832000,-18534.77336949,0.00014973,2]
[422191081,1778671832000,-1100.88376451,0.000149,2]
[422191082,1778671832000,-1358.90721429,0.000149,2]
[422191084,1778671832000,-345.02222984,0.000149,2]
[422191083,1778671832000,-5000.0,0.000149,2]
[422191080,1778671832000,-1316.63572158,0.000149,2]
[422191090,1778671832000,-4210.948934,0.00014973,2]
[422191086,1778671832000,-1179.91666761,0.000149,2]
[422191088,1778671832000,-605.0,0.00014904,2]
[422191091,1778671832000,-1182.1573557,0.00014973,2]
[422191096,1778671832000,-164.42386993,0.00014986,2]
[422191085,1778671832000,-3153.5103798,0.000149,2]
[422191097,1778671832000,-150.0,0.00014986,2]
[422191089,1778671832000,-17564.4239307,0.00014973,2]
[422191093,1778671832000,-13739.06402861,0.00014973,2]
[422191092,1778671832000,-5144.9542084,0.00014973,2]
[422191087,1778671832000,-41973.67204846,0.000149,2]
[422191098,1778671832000,-558.13053853,0.0001499,2]
[422191108,1778671832000,-500.0,0.00014999,2]
[422191109,1778671832000,-500.0,0.00014999,2]
[422191104,1778671832000,-500.0,0.00014999,2]
[422191101,1778671832000,-6111.0,0.00014994,2]
[422191103,1778671832000,-527.42,0.00014999,2]
[422191074,1778671832000,-214.91342137,0.00014843,2]
[422191095,1778671832000,-350.0,0.00014973,2]
[422191078,1778671832000,-200.0,0.0001488,2]
[422191052,1778671832000,-150.0,0.00014725,2]
[422191077,1778671832000,-200.0,0.00014879,2]
[422191049,1778671832000,-150.0,0.00014725,2]
[422191050,1778671832000,-150.0,0.00014725,2]
[422191058,1778671832000,-300.0,0.00014762,2]
[422191053,1778671832000,-150.0,0.00014725,2]
[422191062,1778671832000,-150.0,0.000148,2]
[422191100,1778671832000,-558.13053853,0.0001499,2]
[422191051,1778671832000,-150.0,0.00014725,2]
[422191054,1778671832000,-238.38484813,0.00014725,2]
[422191060,1778671832000,-1946.52,0.00014767,2]
[422191057,1778671832000,-300.0,0.00014762,2]
[422191061,1778671832000,-548.94612977,0.00014799,2]
[422191055,1778671832000,-700.0,0.00014759,2]
[422191079,1778671832000,-5422.79101819,0.000149,3]
[422191059,1778671832000,-300.0,0.00014762,2]
[422191063,1778671832000,-150.0,0.000148,2]
[422191073,1778671832000,-445.77,0.00014834,2]
[422191072,1778671832000,-15000.0,0.00014806,2]
[422191064,1778671832000,-150.0,0.000148,2]
[422191066,1778671832000,-150.0,0.000148,2]
[422191065,1778671832000,-150.0,0.000148,2]
[422191068,1778671832000,-150.0,0.000148,2]
[422191070,1778671832000,-18295.26279821,0.000148,3]
[422191069,1778671832000,-150.0,0.000148,2]
[422191071,1778671832000,-6704.73720179,0.000148,3]
[422191076,1778671832000,-170.85187143,0.00014853,2]
[422191075,1778671832000,-336.66176163,0.0001485,2]
[422191067,1778671832000,-150.0,0.000148,2]
[422191099,1778671832000,-558.13053853,0.0001499,2]
[422191120,1778671832000,-500.0,0.00014999,2]
[422191106,1778671832000,-500.0,0.00014999,2]
[422191141,1778671832000,-500.0,0.00014999,2]
[422191136,1778671832000,-500.0,0.00014999,2]
[422191140,1778671832000,-427.38832037,0.00014999,2]
[422191139,1778671832000,-500.0,0.00014999,2]
[422191137,1778671832000,-500.0,0.00014999,2]
[422191142,1778671832000,-595.41660692,0.00014999,2]
[422191138,1778671832000,-500.0,0.00014999,2]
[422191143,1778671832000,-500.0,0.00014999,2]
[422191146,1778671832000,-500.0,0.00014999,2]
[422191149,1778671832000,-462.20375323,0.00014999,2]
[422191151,1778671832000,-430.46725704,0.00014999,2]
[422191147,1778671832000,-500.0,0.00014999,2]
[422191152,1778671832000,-77.53274296,0.00014999,2]
[422191153,1778671832000,-422.46725704,0.00014999,2]
[422191148,1778671832000,-37.79624677,0.00014999,2]
[422191102,1778671832000,-511.26367736,0.00014999,2]